[Event "Titled Tuesday Blitz December 20 Early 2022"]
[White "LileKoridze"]
[Black "Steegersee"]
[WhiteElo "2345"]
[BlackElo "2425"]
[Result "1-0"]
[Round "06"]
[TimeControl "180+2"]
[Date "2022.12.20"]
[WhiteClock "0:00:04"]
[BlackClock "0:00:02"]

1. d4 {[%clk 0:03:00]}  Nf6 {[%clk 0:02:54]} 2. c4 {[%clk 0:03:00]}  c5 {[%clk 0:02:53]} 3. d5 {[%clk 0:03:00]}  e6 {[%clk 0:02:54]} 4. Nc3 {[%clk 0:03:00]}  exd5 {[%clk 0:02:54]} 5. cxd5 {[%clk 0:03:01]}  d6 {[%clk 0:02:55]} 6. Nf3 {[%clk 0:03:01]}  g6 {[%clk 0:02:55]} 7. Bg5 {[%clk 0:03:00]}  Bg7 {[%clk 0:02:56]} 8. Nd2 {[%clk 0:03:00]}  O-O {[%clk 0:02:54]} 9. Nc4 {[%clk 0:03:00]}  Re8 {[%clk 0:02:51]} 10. e3 {[%clk 0:02:53]}  Qc7 {[%clk 0:02:44]} 11. Bf4 {[%clk 0:02:49]}  Ne4 {[%clk 0:02:35]} 12. Nxe4 {[%clk 0:02:47]}  Rxe4 {[%clk 0:02:36]} 13. Bxd6 {[%clk 0:02:44]}  Qd8 {[%clk 0:02:35]} 14. Bxc5 {[%clk 0:02:28]}  b5 {[%clk 0:02:30]} 15. Nd2 {[%clk 0:02:24]}  Re5 {[%clk 0:01:52]} 16. e4 {[%clk 0:02:10]}  Qxd5 {[%clk 0:01:46]} 17. Be3 {[%clk 0:02:08]}  Qd8 {[%clk 0:01:16]} 18. Be2 {[%clk 0:02:06]}  Bb7 {[%clk 0:01:14]} 19. O-O {[%clk 0:02:05]}  Nc6 {[%clk 0:01:14]} 20. Nb3 {[%clk 0:01:06]}  Qe7 {[%clk 0:00:38]} 21. f3 {[%clk 0:00:53]}  Rd8 {[%clk 0:00:32]} 22. Qc1 {[%clk 0:00:48]}  f5 {[%clk 0:00:24]} 23. Bf4 {[%clk 0:00:29]}  Re6 {[%clk 0:00:19]} 24. Bxb5 {[%clk 0:00:29]}  Nd4 {[%clk 0:00:17]} 25. Bc4 {[%clk 0:00:28]}  Kh8 {[%clk 0:00:15]} 26. Kh1 {[%clk 0:00:27]}  Rc6 {[%clk 0:00:15]} 27. Nxd4 {[%clk 0:00:21]}  Rxd4 {[%clk 0:00:16]} 28. b3 {[%clk 0:00:20]}  fxe4 {[%clk 0:00:16]} 29. fxe4 {[%clk 0:00:20]}  Rxe4 {[%clk 0:00:17]} 30. Rb1 {[%clk 0:00:19]}  Rc8 {[%clk 0:00:15]} 31. Qd2 {[%clk 0:00:17]}  Rd8 {[%clk 0:00:13]} 32. Qa5 {[%clk 0:00:17]}  Re2 {[%clk 0:00:08]} 33. Rg1 {[%clk 0:00:14]}  Rf8 {[%clk 0:00:02]} 34. Bg5 {[%clk 0:00:13]}  Rxg2 {[%clk 0:00:01]} 35. Rxg2 {[%clk 0:00:12]}  Qe4 {[%clk 0:00:01]} 36. Rg1 {[%clk 0:00:10]}  Qf3 {[%clk 0:00:01]} 37. Qd2 {[%clk 0:00:07]}  Bd4 {[%clk 0:00:01]} 38. Qxd4+ {[%clk 0:00:04]}  Rf6 {[%clk 0:00:01]} 39. Bxf6+ {[%clk 0:00:04]}  Qxf6 {[%clk 0:00:02]} 40. Qxf6# {[%clk 0:00:04]} 1-0


[Site "https://www.chess.com"]

[Event "Titled Tuesday Blitz December 20 Early 2022"]
[White "Linhart, Wolfgang"]
[Black "Lasinika, M M D"]
[WhiteFideId "4636244"]
[BlackFideId "9974555"]
[WhiteElo "2114"]
[BlackElo "1072"]
[Result "1-0"]
[Round "06"]
[TimeControl "180+2"]
[Date "2022.12.20"]
[WhiteClock "0:00:32"]
[BlackClock "0:00:00"]

1. e4 {[%clk 0:03:00]}  e6 {[%clk 0:02:54]} 2. d4 {[%clk 0:03:00]}  d5 {[%clk 0:02:55]} 3. Nc3 {[%clk 0:03:00]}  Nf6 {[%clk 0:02:54]} 4. Bg5 {[%clk 0:02:59]}  Be7 {[%clk 0:02:54]} 5. e5 {[%clk 0:02:58]}  Nfd7 {[%clk 0:02:54]} 6. h4 {[%clk 0:02:58]}  h6 {[%clk 0:02:54]} 7. Bxe7 {[%clk 0:02:57]}  Qxe7 {[%clk 0:02:55]} 8. Qg4 {[%clk 0:02:57]}  O-O {[%clk 0:02:55]} 9. Rh3 {[%clk 0:02:57]}  f5 {[%clk 0:02:53]} 10. Qg6 {[%clk 0:02:56]}  Rf7 {[%clk 0:02:46]} 11. Rg3 {[%clk 0:02:42]}  Kh8 {[%clk 0:02:35]} 12. O-O-O {[%clk 0:02:35]}  Nf8 {[%clk 0:02:25]} 13. Qh5 {[%clk 0:02:34]}  f4 {[%clk 0:02:19]} 14. Rf3 {[%clk 0:02:22]}  Bd7 {[%clk 0:01:54]} 15. Bd3 {[%clk 0:02:09]}  Be8 {[%clk 0:01:51]} 16. Qg4 {[%clk 0:02:05]}  g5 {[%clk 0:01:48]} 17. Nh3 {[%clk 0:01:59]}  gxh4 {[%clk 0:01:36]} 18. Rxf4 {[%clk 0:01:51]}  Rg7 {[%clk 0:01:35]} 19. Qxh4 {[%clk 0:01:48]}  Qxh4 {[%clk 0:01:33]} 20. Rxh4 {[%clk 0:01:48]}  Rxg2 {[%clk 0:01:31]} 21. Rxh6+ {[%clk 0:01:45]}  Kg7 {[%clk 0:01:31]} 22. Rh1 {[%clk 0:01:18]}  Kxh6 {[%clk 0:01:17]} 23. Nf4+ {[%clk 0:01:18]}  Kg7 {[%clk 0:01:16]} 24. Nxg2 {[%clk 0:01:18]}  Bg6 {[%clk 0:01:11]} 25. Nf4 {[%clk 0:01:08]}  Bxd3 {[%clk 0:01:09]} 26. Nxd3 {[%clk 0:01:08]}  Nbd7 {[%clk 0:01:03]} 27. Rg1+ {[%clk 0:01:02]}  Kf7 {[%clk 0:01:01]} 28. Nb5 {[%clk 0:00:57]}  Rc8 {[%clk 0:00:45]} 29. Nxa7 {[%clk 0:00:55]}  Ra8 {[%clk 0:00:44]} 30. Nb5 {[%clk 0:00:55]}  Rxa2 {[%clk 0:00:33]} 31. Kb1 {[%clk 0:00:50]}  Ra4 {[%clk 0:00:32]} 32. b3 {[%clk 0:00:42]}  Ra6 {[%clk 0:00:20]} 33. Nxc7 {[%clk 0:00:39]}  Rc6 {[%clk 0:00:20]} 34. Nb5 {[%clk 0:00:38]}  Ke7 {[%clk 0:00:11]} 35. Rg7+ {[%clk 0:00:32]}  Kd8 {[%clk 0:00:00]} 36. Nd6 {[%clk 0:00:32]} 1-0


[Site "https://www.chess.com"]

[Event "Titled Tuesday Blitz December 20 Early 2022"]
[White "Liyanage, Ranindu Dilshan"]
[Black "Midgardsormur"]
[WhiteFideId "9915834"]
[WhiteElo "2342"]
[BlackElo "2460"]
[Result "1-0"]
[Round "06"]
[TimeControl "180+2"]
[Date "2022.12.20"]
[WhiteClock "0:00:53"]
[BlackClock "0:00:46"]

1. e4 {[%clk 0:02:57]}  c5 {[%clk 0:02:59]} 2. Nc3 {[%clk 0:02:53]}  e6 {[%clk 0:02:59]} 3. g3 {[%clk 0:02:52]}  a6 {[%clk 0:02:59]} 4. Bg2 {[%clk 0:02:51]}  b5 {[%clk 0:03:00]} 5. Nge2 {[%clk 0:02:51]}  Bb7 {[%clk 0:03:00]} 6. O-O {[%clk 0:02:50]}  Nf6 {[%clk 0:03:00]} 7. d4 {[%clk 0:02:50]}  cxd4 {[%clk 0:03:01]} 8. Nxd4 {[%clk 0:02:49]}  b4 {[%clk 0:03:01]} 9. Na4 {[%clk 0:02:44]}  Bxe4 {[%clk 0:03:01]} 10. Bxe4 {[%clk 0:02:40]}  Nxe4 {[%clk 0:03:02]} 11. Re1 {[%clk 0:02:36]}  Nc5 {[%clk 0:02:46]} 12. Nxc5 {[%clk 0:01:46]}  Bxc5 {[%clk 0:02:46]} 13. Nf5 {[%clk 0:01:47]}  Qf6 {[%clk 0:01:58]} 14. Nd6+ {[%clk 0:01:41]}  Bxd6 {[%clk 0:01:56]} 15. Qxd6 {[%clk 0:01:42]}  Nc6 {[%clk 0:01:55]} 16. Bf4 {[%clk 0:01:33]}  Qd4 {[%clk 0:01:47]} 17. Rad1 {[%clk 0:01:30]}  Qxd6 {[%clk 0:01:46]} 18. Bxd6 {[%clk 0:01:30]}  f6 {[%clk 0:01:39]} 19. Bc5 {[%clk 0:01:23]}  Rb8 {[%clk 0:01:33]} 20. a4 {[%clk 0:01:06]}  Rb7 {[%clk 0:01:14]} 21. Rd6 {[%clk 0:00:56]}  Kf7 {[%clk 0:00:47]} 22. Red1 {[%clk 0:00:55]}  Rd8 {[%clk 0:00:46]} 23. Rxc6 {[%clk 0:00:53]} 1-0


[Site "https://www.chess.com"]

[Event "Titled Tuesday Blitz December 20 Early 2022"]
[White "Machidon, Cristi"]
[Black "viditchess"]
[WhiteFideId "13904590"]
[WhiteElo "2279"]
[BlackElo "2986"]
[Result "0-1"]
[Round "06"]
[TimeControl "180+2"]
[Date "2022.12.20"]
[WhiteClock "0:00:04"]
[BlackClock "0:00:44"]

1. d4 {[%clk 0:03:00]}  g6 {[%clk 0:03:00]} 2. e4 {[%clk 0:03:00]}  Bg7 {[%clk 0:03:00]} 3. Nc3 {[%clk 0:03:00]}  d6 {[%clk 0:03:01]} 4. Be3 {[%clk 0:03:01]}  a6 {[%clk 0:03:01]} 5. Qd2 {[%clk 0:03:01]}  b5 {[%clk 0:03:00]} 6. a4 {[%clk 0:02:58]}  b4 {[%clk 0:02:59]} 7. Nce2 {[%clk 0:02:58]}  a5 {[%clk 0:02:58]} 8. Nf3 {[%clk 0:02:56]}  Bb7 {[%clk 0:02:58]} 9. Ng3 {[%clk 0:02:56]}  Nd7 {[%clk 0:02:58]} 10. c3 {[%clk 0:02:55]}  c5 {[%clk 0:02:57]} 11. Bb5 {[%clk 0:02:54]}  cxd4 {[%clk 0:02:48]} 12. cxd4 {[%clk 0:02:40]}  Nf6 {[%clk 0:02:49]} 13. d5 {[%clk 0:02:12]}  O-O {[%clk 0:02:48]} 14. O-O {[%clk 0:02:12]}  Ng4 {[%clk 0:02:39]} 15. Bd4 {[%clk 0:02:12]}  Nc5 {[%clk 0:02:32]} 16. Bxg7 {[%clk 0:01:53]}  Kxg7 {[%clk 0:02:32]} 17. Rae1 {[%clk 0:01:34]}  Rc8 {[%clk 0:02:26]} 18. h3 {[%clk 0:01:17]}  Ne5 {[%clk 0:02:24]} 19. Nd4 {[%clk 0:01:03]}  Qb6 {[%clk 0:02:15]} 20. Kh2 {[%clk 0:01:01]}  Kh8 {[%clk 0:02:09]} 21. f4 {[%clk 0:00:59]}  Ned7 {[%clk 0:02:08]} 22. h4 {[%clk 0:00:51]}  Nf6 {[%clk 0:02:07]} 23. h5 {[%clk 0:00:48]}  Ba6 {[%clk 0:02:07]} 24. f5 {[%clk 0:00:33]}  g5 {[%clk 0:02:03]} 25. e5 {[%clk 0:00:21]}  dxe5 {[%clk 0:02:02]} 26. Nc6 {[%clk 0:00:20]}  Bxb5 {[%clk 0:02:01]} 27. axb5 {[%clk 0:00:20]}  e4 {[%clk 0:01:58]} 28. Qxg5 {[%clk 0:00:19]}  Rg8 {[%clk 0:01:58]} 29. Qh4 {[%clk 0:00:19]}  Qc7 {[%clk 0:01:53]} 30. Rf4 {[%clk 0:00:16]}  Nd3 {[%clk 0:01:52]} 31. Rexe4 {[%clk 0:00:15]}  Nxf4 {[%clk 0:01:51]} 32. Rxf4 {[%clk 0:00:15]}  Nxd5 {[%clk 0:01:51]} 33. Rc4 {[%clk 0:00:12]}  Nf6 {[%clk 0:01:47]} 34. h6 {[%clk 0:00:09]}  Qd6 {[%clk 0:01:42]} 35. Kh3 {[%clk 0:00:06]}  Qd3 {[%clk 0:01:19]} 36. Ne5 {[%clk 0:00:04]}  Rxg3+ {[%clk 0:01:08]} 37. Qxg3 {[%clk 0:00:05]}  Qxf5+ {[%clk 0:01:08]} 38. Kh2 {[%clk 0:00:05]}  Qh5+ {[%clk 0:01:07]} 39. Kg1 {[%clk 0:00:05]}  Rg8 {[%clk 0:00:55]} 40. Qf4 {[%clk 0:00:05]}  Qd1+ {[%clk 0:00:45]} 41. Kh2 {[%clk 0:00:05]}  Qd5 {[%clk 0:00:45]} 42. Rc5 {[%clk 0:00:04]}  Qxg2# {[%clk 0:00:44]} 0-1


[Site "https://www.chess.com"]

[Event "Titled Tuesday Blitz December 20 Early 2022"]
[White "Manish Anto Cristiano F"]
[Black "Vsevolod_Ovchinnikov"]
[WhiteFideId "25095927"]
[WhiteElo "2485"]
[BlackElo "2557"]
[Result "0-1"]
[Round "06"]
[TimeControl "180+2"]
[Date "2022.12.20"]
[WhiteClock "0:01:03"]
[BlackClock "0:00:16"]

1. d4 {[%clk 0:03:00]}  Nf6 {[%clk 0:02:58]} 2. c4 {[%clk 0:02:59]}  g6 {[%clk 0:02:58]} 3. Nc3 {[%clk 0:02:58]}  d5 {[%clk 0:02:59]} 4. Bf4 {[%clk 0:02:58]}  Bg7 {[%clk 0:02:59]} 5. e3 {[%clk 0:02:59]}  O-O {[%clk 0:02:58]} 6. Nf3 {[%clk 0:02:59]}  c5 {[%clk 0:02:58]} 7. dxc5 {[%clk 0:02:59]}  Ne4 {[%clk 0:02:58]} 8. Rc1 {[%clk 0:02:59]}  Nxc3 {[%clk 0:02:58]} 9. bxc3 {[%clk 0:02:59]}  dxc4 {[%clk 0:02:59]} 10. Bxc4 {[%clk 0:02:59]}  Qa5 {[%clk 0:02:48]} 11. Qb3 {[%clk 0:02:55]}  Qxc5 {[%clk 0:02:42]} 12. O-O {[%clk 0:02:54]}  Nc6 {[%clk 0:02:38]} 13. Be2 {[%clk 0:02:50]}  b6 {[%clk 0:02:24]} 14. Nd4 {[%clk 0:02:49]}  Bb7 {[%clk 0:02:12]} 15. f3 {[%clk 0:02:43]}  Na5 {[%clk 0:01:59]} 16. Qb4 {[%clk 0:02:40]}  e5 {[%clk 0:01:57]} 17. Bg3 {[%clk 0:02:20]}  exd4 {[%clk 0:01:52]} 18. Qxc5 {[%clk 0:02:19]}  bxc5 {[%clk 0:01:52]} 19. cxd4 {[%clk 0:02:20]}  cxd4 {[%clk 0:01:50]} 20. Rc5 {[%clk 0:02:15]}  dxe3 {[%clk 0:01:13]} 21. Rxa5 {[%clk 0:02:13]}  Bd4 {[%clk 0:01:13]} 22. Be5 {[%clk 0:02:05]}  Bb6 {[%clk 0:01:11]} 23. Rb5 {[%clk 0:01:56]}  Ba6 {[%clk 0:01:08]} 24. Rb2 {[%clk 0:01:56]}  Bxe2 {[%clk 0:01:08]} 25. Rxe2 {[%clk 0:01:56]}  Rfe8 {[%clk 0:01:09]} 26. f4 {[%clk 0:01:55]}  Rad8 {[%clk 0:01:03]} 27. g4 {[%clk 0:01:52]}  f6 {[%clk 0:00:39]} 28. Bxf6 {[%clk 0:01:51]}  Rd2 {[%clk 0:00:39]} 29. Rfe1 {[%clk 0:01:47]}  Re4 {[%clk 0:00:34]} 30. Be5 {[%clk 0:01:45]}  g5 {[%clk 0:00:32]} 31. Kg2 {[%clk 0:01:43]}  gxf4 {[%clk 0:00:30]} 32. Bf6 {[%clk 0:01:36]}  Ra4 {[%clk 0:00:24]} 33. Kf3 {[%clk 0:01:34]}  Raxa2 {[%clk 0:00:20]} 34. Bg5 {[%clk 0:01:34]}  Rxe2 {[%clk 0:00:18]} 35. Rxe2 {[%clk 0:01:35]}  Rxe2 {[%clk 0:00:18]} 36. Kxe2 {[%clk 0:01:35]}  Bc7 {[%clk 0:00:19]} 37. Kf3 {[%clk 0:01:34]}  Kf7 {[%clk 0:00:19]} 38. h4 {[%clk 0:01:34]}  Ke6 {[%clk 0:00:17]} 39. Bh6 {[%clk 0:01:30]}  Be5 {[%clk 0:00:16]} 40. h5 {[%clk 0:01:30]}  a5 {[%clk 0:00:16]} 41. Bf8 {[%clk 0:01:28]}  a4 {[%clk 0:00:15]} 42. Ba3 {[%clk 0:01:27]}  Bd6 {[%clk 0:00:14]} 43. Bb2 {[%clk 0:01:27]}  a3 {[%clk 0:00:14]} 44. Ba1 {[%clk 0:01:13]}  Be5 {[%clk 0:00:14]} 45. Bxe5 {[%clk 0:01:09]}  Kxe5 {[%clk 0:00:15]} 46. g5 {[%clk 0:01:09]}  Kf5 {[%clk 0:00:15]} 47. g6 {[%clk 0:01:08]}  hxg6 {[%clk 0:00:16]} 48. h6 {[%clk 0:01:09]}  Kf6 {[%clk 0:00:17]} 49. Kxf4 {[%clk 0:01:03]}  e2 {[%clk 0:00:16]} 0-1


[Site "https://www.chess.com"]

[Event "Titled Tuesday Blitz December 20 Early 2022"]
[White "MatthewG-p4p"]
[Black "Mitrabha, Guha"]
[BlackFideId "5057000"]
[WhiteElo "2825"]
[BlackElo "2507"]
[Result "1-0"]
[Round "06"]
[TimeControl "180+2"]
[Date "2022.12.20"]
[WhiteClock "0:00:04"]
[BlackClock "0:00:15"]

1. e4 {[%clk 0:03:00]}  c6 {[%clk 0:02:46]} 2. d4 {[%clk 0:02:55]}  d5 {[%clk 0:02:47]} 3. exd5 {[%clk 0:02:52]}  cxd5 {[%clk 0:02:47]} 4. Bd3 {[%clk 0:02:53]}  Nf6 {[%clk 0:02:48]} 5. h3 {[%clk 0:02:52]}  Nc6 {[%clk 0:02:46]} 6. c3 {[%clk 0:02:53]}  e5 {[%clk 0:02:45]} 7. dxe5 {[%clk 0:02:53]}  Nxe5 {[%clk 0:02:44]} 8. Qe2 {[%clk 0:02:42]}  Qe7 {[%clk 0:02:39]} 9. Bc2 {[%clk 0:02:42]}  Bd7 {[%clk 0:02:25]} 10. Bf4 {[%clk 0:02:20]}  Nc4 {[%clk 0:02:22]} 11. b3 {[%clk 0:02:15]}  Nb6 {[%clk 0:02:17]} 12. Nf3 {[%clk 0:02:07]}  Qxe2+ {[%clk 0:02:04]} 13. Kxe2 {[%clk 0:02:08]}  Be7 {[%clk 0:02:04]} 14. Re1 {[%clk 0:02:01]}  O-O {[%clk 0:02:03]} 15. Kf1 {[%clk 0:02:01]}  Rfe8 {[%clk 0:02:03]} 16. Nbd2 {[%clk 0:01:42]}  Rac8 {[%clk 0:01:59]} 17. Be5 {[%clk 0:01:42]}  Bb5+ {[%clk 0:01:51]} 18. Kg1 {[%clk 0:01:42]}  Nfd7 {[%clk 0:01:51]} 19. Bd4 {[%clk 0:01:39]}  Ba3 {[%clk 0:01:29]} 20. Rab1 {[%clk 0:01:13]}  Nf8 {[%clk 0:01:22]} 21. Bf5 {[%clk 0:01:10]}  Ne6 {[%clk 0:01:16]} 22. Bxb6 {[%clk 0:00:36]}  axb6 {[%clk 0:01:11]} 23. c4 {[%clk 0:00:14]}  dxc4 {[%clk 0:01:05]} 24. bxc4 {[%clk 0:00:13]}  Ba4 {[%clk 0:00:59]} 25. Rxb6 {[%clk 0:00:12]}  Nc5 {[%clk 0:00:54]} 26. Bxc8 {[%clk 0:00:10]}  Rxc8 {[%clk 0:00:54]} 27. Re3 {[%clk 0:00:06]}  Nd7 {[%clk 0:00:45]} 28. Rxb7 {[%clk 0:00:05]}  Bc5 {[%clk 0:00:45]} 29. Re1 {[%clk 0:00:04]}  Bc6 {[%clk 0:00:45]} 30. Rbb1 {[%clk 0:00:05]}  f6 {[%clk 0:00:45]} 31. Nb3 {[%clk 0:00:05]}  Bf8 {[%clk 0:00:44]} 32. Nfd4 {[%clk 0:00:06]}  Ba4 {[%clk 0:00:44]} 33. Rbc1 {[%clk 0:00:06]}  Ne5 {[%clk 0:00:44]} 34. c5 {[%clk 0:00:06]}  Nd3 {[%clk 0:00:44]} 35. Red1 {[%clk 0:00:06]}  Nxc1 {[%clk 0:00:43]} 36. Rxc1 {[%clk 0:00:07]}  Kf7 {[%clk 0:00:43]} 37. Kf1 {[%clk 0:00:07]}  Ke8 {[%clk 0:00:42]} 38. Ke2 {[%clk 0:00:07]}  Kd7 {[%clk 0:00:42]} 39. Kd3 {[%clk 0:00:08]}  Ra8 {[%clk 0:00:39]} 40. Kc4 {[%clk 0:00:07]}  Kc8 {[%clk 0:00:39]} 41. c6 {[%clk 0:00:06]}  Bd6 {[%clk 0:00:35]} 42. Kd5 {[%clk 0:00:05]}  Ba3 {[%clk 0:00:35]} 43. Re1 {[%clk 0:00:05]}  Ra5+ {[%clk 0:00:33]} 44. Kc4 {[%clk 0:00:04]}  Re5 {[%clk 0:00:21]} 45. Rxe5 {[%clk 0:00:04]}  fxe5 {[%clk 0:00:22]} 46. Nb5 {[%clk 0:00:04]}  Be7 {[%clk 0:00:19]} 47. Nc5 {[%clk 0:00:04]}  Bd1 {[%clk 0:00:19]} 48. Kd5 {[%clk 0:00:04]}  Be2 {[%clk 0:00:17]} 49. Nd6+ {[%clk 0:00:04]}  Kc7 {[%clk 0:00:16]} 50. Ne6+ {[%clk 0:00:05]}  Kb6 {[%clk 0:00:16]} 51. c7 {[%clk 0:00:04]}  Bf1 {[%clk 0:00:13]} 52. c8=Q {[%clk 0:00:03]}  Bxg2+ {[%clk 0:00:14]} 53. Kxe5 {[%clk 0:00:04]}  Bxd6+ {[%clk 0:00:15]} 54. Kxd6 {[%clk 0:00:04]} 1-0


[Site "https://www.chess.com"]

[Event "Titled Tuesday Blitz December 20 Early 2022"]
[White "McCarthyStone"]
[Black "Makswolf200817"]
[WhiteElo "2471"]
[BlackElo "2651"]
[Result "0-1"]
[Round "06"]
[TimeControl "180+2"]
[Date "2022.12.20"]
[WhiteClock "0:00:10"]
[BlackClock "0:00:27"]

1. e4 {[%clk 0:03:00]}  e6 {[%clk 0:02:57]} 2. b3 {[%clk 0:02:58]}  d5 {[%clk 0:02:56]} 3. Bb2 {[%clk 0:02:58]}  c5 {[%clk 0:02:55]} 4. exd5 {[%clk 0:02:58]}  exd5 {[%clk 0:02:54]} 5. Bb5+ {[%clk 0:02:59]}  Nc6 {[%clk 0:02:52]} 6. Nc3 {[%clk 0:02:59]}  Nf6 {[%clk 0:02:50]} 7. Qe2+ {[%clk 0:03:00]}  Be7 {[%clk 0:02:49]} 8. Nf3 {[%clk 0:03:00]}  O-O {[%clk 0:02:47]} 9. O-O-O {[%clk 0:02:57]}  Bg4 {[%clk 0:02:45]} 10. Bxc6 {[%clk 0:02:58]}  bxc6 {[%clk 0:02:44]} 11. h3 {[%clk 0:02:58]}  Be6 {[%clk 0:02:36]} 12. g4 {[%clk 0:02:57]}  c4 {[%clk 0:02:32]} 13. Nd4 {[%clk 0:02:57]}  Qd6 {[%clk 0:02:25]} 14. Rde1 {[%clk 0:02:53]}  Ne4 {[%clk 0:02:11]} 15. Nxe4 {[%clk 0:02:51]}  dxe4 {[%clk 0:02:11]} 16. Qxe4 {[%clk 0:02:42]}  Bd5 {[%clk 0:02:09]} 17. Qxe7 {[%clk 0:02:31]}  Qxe7 {[%clk 0:02:08]} 18. Rxe7 {[%clk 0:02:32]}  Bxh1 {[%clk 0:02:08]} 19. Nf5 {[%clk 0:02:33]}  cxb3 {[%clk 0:02:00]} 20. Bxg7 {[%clk 0:02:26]}  Rfe8 {[%clk 0:01:57]} 21. Bf6 {[%clk 0:01:25]}  Rxe7 {[%clk 0:01:48]} 22. Nxe7+ {[%clk 0:01:26]}  Kf8 {[%clk 0:01:48]} 23. axb3 {[%clk 0:01:26]}  Re8 {[%clk 0:01:40]} 24. Nf5 {[%clk 0:01:17]}  Re1+ {[%clk 0:01:39]} 25. Kb2 {[%clk 0:01:17]}  Be4 {[%clk 0:01:32]} 26. Ng3 {[%clk 0:01:12]}  Bd5 {[%clk 0:01:29]} 27. Bd4 {[%clk 0:01:12]}  a6 {[%clk 0:01:29]} 28. Be3 {[%clk 0:01:11]}  Ke7 {[%clk 0:01:25]} 29. c4 {[%clk 0:01:06]}  Bf3 {[%clk 0:01:15]} 30. Nf5+ {[%clk 0:01:05]}  Kd7 {[%clk 0:01:13]} 31. Nd4 {[%clk 0:00:56]}  Bg2 {[%clk 0:01:10]} 32. h4 {[%clk 0:00:55]}  Rh1 {[%clk 0:01:08]} 33. Nf5 {[%clk 0:00:50]}  Bf3 {[%clk 0:00:54]} 34. g5 {[%clk 0:00:51]}  Bg4 {[%clk 0:00:51]} 35. Nh6 {[%clk 0:00:46]}  Be6 {[%clk 0:00:49]} 36. h5 {[%clk 0:00:39]}  Rxh5 {[%clk 0:00:47]} 37. Ng8 {[%clk 0:00:40]}  Rh1 {[%clk 0:00:45]} 38. Nf6+ {[%clk 0:00:40]}  Kd6 {[%clk 0:00:43]} 39. Bf4+ {[%clk 0:00:39]}  Ke7 {[%clk 0:00:43]} 40. Be3 {[%clk 0:00:37]}  Bf5 {[%clk 0:00:42]} 41. Kc3 {[%clk 0:00:35]}  h5 {[%clk 0:00:39]} 42. Kd4 {[%clk 0:00:12]}  h4 {[%clk 0:00:38]} 43. Kc5 {[%clk 0:00:12]}  h3 {[%clk 0:00:37]} 44. Nh5 {[%clk 0:00:13]}  Rg1 {[%clk 0:00:31]} 45. Ng3 {[%clk 0:00:13]}  Rxg3 {[%clk 0:00:31]} 46. fxg3 {[%clk 0:00:08]}  h2 {[%clk 0:00:31]} 47. Kxc6 {[%clk 0:00:07]}  h1=Q+ {[%clk 0:00:31]} 48. Kb6 {[%clk 0:00:08]}  Qb1 {[%clk 0:00:29]} 49. Bc5+ {[%clk 0:00:09]}  Kd7 {[%clk 0:00:29]} 50. b4 {[%clk 0:00:10]}  Qa2 {[%clk 0:00:28]} 51. d3 {[%clk 0:00:10]}  Bxd3 {[%clk 0:00:27]} 0-1


[Site "https://www.chess.com"]

[Event "Titled Tuesday Blitz December 20 Early 2022"]
[White "Michelin, Badi"]
[Black "Chernov_Mikhail"]
[WhiteFideId "26032708"]
[WhiteElo "1762"]
[BlackElo "2398"]
[Result "1-0"]
[Round "06"]
[TimeControl "180+2"]
[Date "2022.12.20"]
[WhiteClock "0:00:11"]
[BlackClock "0:00:03"]

1. Nf3 {[%clk 0:03:00]}  c5 {[%clk 0:02:59]} 2. c4 {[%clk 0:03:00]}  Nc6 {[%clk 0:03:00]} 3. Nc3 {[%clk 0:03:00]}  e5 {[%clk 0:03:00]} 4. e3 {[%clk 0:02:59]}  f5 {[%clk 0:03:00]} 5. d4 {[%clk 0:03:00]}  e4 {[%clk 0:03:00]} 6. d5 {[%clk 0:02:59]}  exf3 {[%clk 0:03:01]} 7. dxc6 {[%clk 0:02:59]}  dxc6 {[%clk 0:03:02]} 8. Qxd8+ {[%clk 0:02:54]}  Kxd8 {[%clk 0:03:03]} 9. gxf3 {[%clk 0:02:54]}  Nf6 {[%clk 0:02:57]} 10. Bd2 {[%clk 0:02:52]}  Be6 {[%clk 0:02:51]} 11. O-O-O {[%clk 0:02:52]}  Bd6 {[%clk 0:02:36]} 12. h4 {[%clk 0:02:44]}  Ke7 {[%clk 0:02:35]} 13. Bd3 {[%clk 0:02:36]}  Rad8 {[%clk 0:02:23]} 14. Kc2 {[%clk 0:02:32]}  Kf7 {[%clk 0:01:51]} 15. b3 {[%clk 0:02:26]}  Bc7 {[%clk 0:01:43]} 16. Ne2 {[%clk 0:02:24]}  Rd7 {[%clk 0:01:35]} 17. Bc3 {[%clk 0:02:19]}  Rhd8 {[%clk 0:01:35]} 18. Nf4 {[%clk 0:02:15]}  Bxf4 {[%clk 0:01:35]} 19. exf4 {[%clk 0:02:15]}  Nh5 {[%clk 0:01:29]} 20. Be5 {[%clk 0:02:13]}  g6 {[%clk 0:01:23]} 21. Be2 {[%clk 0:02:05]}  Rd4 {[%clk 0:01:18]} 22. Bxd4 {[%clk 0:01:51]}  cxd4 {[%clk 0:01:18]} 23. Bd3 {[%clk 0:01:41]}  Nxf4 {[%clk 0:01:13]} 24. b4 {[%clk 0:01:37]}  b6 {[%clk 0:00:59]} 25. a4 {[%clk 0:01:33]}  Nxd3 {[%clk 0:00:32]} 26. Kxd3 {[%clk 0:01:32]}  f4 {[%clk 0:00:33]} 27. Rhe1 {[%clk 0:01:11]}  Bf5+ {[%clk 0:00:31]} 28. Kd2 {[%clk 0:01:12]}  Kf6 {[%clk 0:00:27]} 29. Ra1 {[%clk 0:01:08]}  c5 {[%clk 0:00:24]} 30. b5 {[%clk 0:01:02]}  d3 {[%clk 0:00:15]} 31. a5 {[%clk 0:01:01]}  Rd4 {[%clk 0:00:14]} 32. Rec1 {[%clk 0:01:01]}  g5 {[%clk 0:00:11]} 33. h5 {[%clk 0:00:54]}  g4 {[%clk 0:00:09]} 34. fxg4 {[%clk 0:00:50]}  Bxg4 {[%clk 0:00:10]} 35. axb6 {[%clk 0:00:51]}  axb6 {[%clk 0:00:10]} 36. Ra6 {[%clk 0:00:50]}  Rd6 {[%clk 0:00:10]} 37. Rh1 {[%clk 0:00:41]}  Be6 {[%clk 0:00:10]} 38. Rc1 {[%clk 0:00:38]}  Ke5 {[%clk 0:00:09]} 39. Ra7 {[%clk 0:00:32]}  Bf5 {[%clk 0:00:07]} 40. Rc7 {[%clk 0:00:26]}  Kd4 {[%clk 0:00:06]} 41. Rc6 {[%clk 0:00:25]}  Rd7 {[%clk 0:00:06]} 42. Rxb6 {[%clk 0:00:25]}  Ra7 {[%clk 0:00:06]} 43. Rd6+ {[%clk 0:00:21]}  Ke5 {[%clk 0:00:05]} 44. Rd5+ {[%clk 0:00:21]}  Ke4 {[%clk 0:00:05]} 45. Re1+ {[%clk 0:00:19]}  Kf3 {[%clk 0:00:04]} 46. Rxf5 {[%clk 0:00:19]}  Kxf2 {[%clk 0:00:03]} 47. Rxf4+ {[%clk 0:00:16]}  Kg3 {[%clk 0:00:04]} 48. Rf6 {[%clk 0:00:14]}  Ra2+ {[%clk 0:00:03]} 49. Kxd3 {[%clk 0:00:14]}  Kg4 {[%clk 0:00:03]} 50. Rg1+ {[%clk 0:00:14]}  Kxh5 {[%clk 0:00:03]} 51. Ke4 {[%clk 0:00:11]} 1-0


[Site "https://www.chess.com"]